bitfinex-derivatives/quotes_SOLF0:USTF0_20240904
["timestamp","ask_amount","ask_price","bid_price","bid_amount"]
[1725437670015,3.74297851,130.35,130.34,0.05399598]
[1725437670218,0.04969252,130.37,130.34,0.05399598]
[1725437670420,3.8362,130.36,130.34,0.05399598]
[1725437670724,0.04969252,130.37,130.34,0.05399598]
[1725437670919,3.95807898,130.37,130.34,0.05399598]
[1725437672027,3.8361,130.36,130.34,0.05399598]
[1725437672527,7.79397898,130.37,130.34,0.05399598]
[1725437672719,3.95807898,130.37,130.34,0.05399598]
[1725437673120,3.95807898,130.37,130.34,3.89059598]
[1725437674225,3.95807898,130.37,130.35,3.8363]
[1725437675125,3.95807898,130.37,130.34,3.89049598]
[1725437675827,3.95807898,130.37,130.35,3.8363]
[1725437676226,3.95807898,130.37,130.34,0.05399598]
[1725437676428,3.95807898,130.37,130.34,3.89039598]
[1725437677333,3.95807898,130.37,130.34,0.05399598]
[1725437678223,3.95807898,130.37,130.34,3.89059598]
[1725437678423,7.79387898,130.37,130.34,0.05399598]
[1725437680130,3.95807898,130.37,130.34,3.89059598]
[1725437680332,3.95807898,130.37,130.34,23.70399598]
[1725437680525,0.04969252,130.37,130.34,23.70399598]
[1725437681432,0.04969252,130.37,130.34,27.54049598]
[1725437681930,110.85464879,130.45,130.34,23.70399598]
[1725437682233,1.09063624,130.43,130.35,3.8362]
[1725437682732,3.8354,130.39,130.35,3.8362]
[1725437682923,0.05522816,130.38,130.36,0.05451912]
[1725437683520,3.78097245,130.37,130.36,0.05451912]
[1725437683831,7.61677245,130.37,130.36,0.05451912]
[1725437684035,7.68201456,130.37,130.36,0.05451912]
[1725437686239,3.84621456,130.37,130.31,1.3977]
[1725437686533,24.9693,130.39,130.31,1.3977]
[1725437686739,1.09103708,130.38,130.31,1.3977]
[1725437687032,0.05091718,130.36,130.33,0.05398644]
[1725437687230,3.8366,130.34,130.33,0.05398644]
[1725437687930,7.60731783,130.34,130.33,0.05398644]
[1725437693333,3.8376,130.31,130.27,7.9693]
[1725437693835,7.72721898,130.31,130.27,7.9693]
[1725437694040,3.8376,130.31,130.27,7.9693]
[1725437694248,0.04858305,130.3,130.28,0.05849096]
[1725437694432,3.85238489,130.29,130.28,0.05849096]
[1725437694838,0.04858305,130.3,130.28,27.54679096]
[1725437696041,2.1788,130.38,130.29,23.65]
[1725437697037,0.05321569,130.35,130.32,0.05720352]
[1725437697341,3.8368,130.34,130.32,0.05720352]
[1725437698643,3.81798641,130.35,130.32,0.05720352]
[1725437700041,3.8368,130.34,130.32,0.05720352]
[1725437700246,3.81798641,130.35,130.32,0.05720352]
[1725437700641,7.65448641,130.35,130.32,0.05720352]
[1725437701246,7.65448641,130.35,130.32,3.89440352]
[1725437701447,7.65448641,130.35,130.32,0.05720352]
[1725437701643,3.81798641,130.35,130.32,0.05720352]
[1725437702148,0.05321569,130.35,130.34,3.8366]
[1725437702340,1.4367,130.42,130.33,23.65]
[1725437702540,3.79902882,130.43,130.33,23.65]
[1725437702541,3.8347,130.41,130.35,23.65]
[1725437702852,3.8347,130.41,130.36,3.8359]
[1725437703337,3.8347,130.41,130.37,0.05518345]
[1725437703543,0.05096014,130.4,130.37,0.05518345]
[1725437703750,0.05096014,130.4,130.37,23.70518345]
[1725437704749,3.8293108,130.44,130.39,23.65]
[1725437704945,3.8293108,130.44,130.4,25.0322]
[1725437705245,2.6988,130.54,130.4,1.3822]
[1725437705451,2.6988,130.54,130.42,23.65]
[1725437705452,23.65,130.51,130.42,23.65]
[1725437705747,3.833,130.47,130.42,27.4841]
[1725437705947,7.73886127,130.47,130.45,0.05252764]
[1725437706749,0.05468335,130.48,130.45,0.05252764]
[1725437707046,0.05468335,130.48,130.46,23.65]
[1725437707548,0.05468335,130.48,130.46,27.4831]
[1725437707750,0.05468335,130.48,130.46,23.65]
[1725437707941,0.05468335,130.48,130.45,0.05252764]
[1725437708245,3.8331,130.46,130.45,0.05252764]
[1725437708451,23.65,130.48,130.38,23.65]
[1725437708643,2.8128,130.47,130.38,23.65]
[1725437708951,24.74022048,130.46,130.38,23.65]
[1725437709143,23.65,130.46,130.38,23.65]
[1725437709542,0.04912864,130.43,130.41,0.05534879]
[1725437709945,3.8343,130.42,130.41,0.05534879]
[1725437711742,3.90560782,130.43,130.41,0.05534879]
[1725437711945,0.04912864,130.43,130.41,0.05534879]
[1725437712155,0.04912864,130.43,130.41,23.70534879]
[1725437712354,3.8671096,130.5,130.41,23.70534879]
[1725437712651,3.8334,130.46,130.43,23.65]
[1725437712850,27.47691326,130.5,130.41,27.4845]
[1725437713049,1.0900974,130.49,130.41,23.65]
[1725437713244,1.0900974,130.49,130.44,0.04988947]
[1725437713449,0.05180802,130.46,130.44,0.04988947]
[1725437713753,3.8334,130.45,130.44,0.04988947]
[1725437714443,3.8344,130.42,130.37,27.4857]
[1725437714641,3.76466269,130.41,130.37,23.65]
[1725437714848,24.9897,130.45,130.37,23.65]
[1725437715043,23.65,130.43,130.35,23.65]
[1725437715246,27.48370388,130.43,130.35,23.65]
[1725437715446,0.05525055,130.4,130.38,0.05882706]
[1725437716054,3.8354,130.39,130.38,0.05882706]
[1725437716246,0.05525055,130.4,130.38,0.05882706]
[1725437720463,0.05525055,130.4,130.38,3.89432706]
[1725437721160,0.05525055,130.4,130.38,0.05882706]
[1725437723355,3.8352,130.39,130.38,0.05882706]
[1725437724557,0.05525055,130.4,130.38,0.05882706]
[1725437725162,0.05525055,130.4,130.38,29.53882706]
[1725437725551,2.7911,130.48,130.38,29.53882706]
[1725437725763,2.7911,130.48,130.37,3.80005773]
[1725437725764,1.09006241,130.47,130.4,29.48]
[1725437726163,1.09006241,130.47,130.4,33.3146]
[1725437726661,0.0493259,130.45,130.42,0.04901096]
[1725437728065,3.8339,130.44,130.42,0.04901096]
[1725437728257,3.8172107,130.43,130.42,0.04901096]
[1725437728652,3.834,130.43,130.42,0.04901096]
[1725437728853,7.73252588,130.43,130.42,0.04901096]
[1725437729457,3.8338,130.44,130.42,0.04901096]
[1725437729659,0.0493259,130.45,130.42,0.04901096]
[1725437730854,3.8339,130.44,130.42,0.04901096]
[1725437731159,3.83158183,130.43,130.42,0.04901096]
[1725437731365,3.8829259,130.45,130.42,0.04901096]
[1725437731765,0.0493259,130.45,130.42,0.04901096]
[1725437732459,3.8337,130.44,130.42,0.04901096]
[1725437732756,3.88220427,130.43,130.42,0.04901096]
[1725437732964,3.8338,130.44,130.42,0.04901096]
[1725437733165,3.7828769,130.43,130.42,0.04901096]
[1725437733667,7.6168769,130.43,130.42,0.04901096]
[1725437733863,3.834,130.43,130.42,0.04901096]
[1725437734058,7.76099183,130.43,130.42,0.04901096]
[1725437735260,3.92699183,130.43,130.42,0.04901096]
[1725437735460,3.8338,130.44,130.42,0.04901096]
[1725437735865,3.74481377,130.43,130.42,0.04901096]
[1725437739072,7.57881377,130.43,130.42,0.04901096]
[1725437739279,3.834,130.43,130.42,0.04901096]
[1725437739471,7.57573607,130.43,130.42,0.04901096]
[1725437751575,8.66612524,130.43,130.42,0.04901096]
[1725437751781,7.57573607,130.43,130.42,0.04901096]
[1725437756381,7.57573607,130.43,130.42,1.096e-05]
[1725437756586,8.66625938,130.43,130.42,1.096e-05]
[1725437756988,32.22625938,130.43,130.42,1.096e-05]
[1725437757989,3.8359,130.37,130.35,2.7922]
[1725437758991,0.05227362,130.37,130.35,2.84536856]
[1725437760894,3.74173607,130.43,130.35,26.40536856]
[1725437761197,3.8352,130.39,130.35,30.1884]
[1725437761895,3.835,130.4,130.36,0.05514698]
[1725437762395,0.05348689,130.39,130.37,23.56]
[1725437762699,3.8344,130.42,130.37,23.56]
[1725437763298,3.8344,130.42,130.38,3.8355]
[1725437763791,3.88382943,130.41,130.39,0.05321296]
[1725437763985,0.04922943,130.41,130.39,0.05321296]
[1725437764384,3.8349,130.4,130.39,0.05321296]
[1725437767199,3.8349,130.4,130.34,24.8896]
[1725437767200,3.836,130.37,130.34,23.56]
[1725437767395,3.76456788,130.41,130.32,24.8685]
[1725437767587,23.56,130.42,130.32,24.8685]
[1725437768194,27.35411348,130.42,130.32,24.8685]
[1725437768390,0.05845129,130.38,130.36,0.05489952]
[1725437768786,3.8359,130.37,130.36,0.05489952]
[1725437769385,0.05845129,130.38,130.36,0.05489952]
[1725437770291,3.8358,130.37,130.36,0.05489952]
[1725437772498,4.92695805,130.37,130.36,0.05489952]
[1725437772897,3.8373,130.32,130.28,27.7586]
[1725437773096,23.56,130.36,130.28,27.7586]
[1725437773698,3.8374,130.32,130.28,27.7586]
[1725437773900,3.80218626,130.31,130.29,0.05319847]
[1725437776502,3.8378,130.3,130.29,0.05319847]
[1725437779504,7.63998626,130.31,130.29,0.05319847]
[1725437780103,3.8378,130.3,130.29,0.05319847]
[1725437784608,27.3978,130.3,130.29,0.05319847]
[1725437785506,28.48965305,130.3,130.29,0.05319847]
[1725437788010,35.0678,130.3,130.29,0.05319847]
[1725437788204,36.15966028,130.3,130.29,0.05319847]
[1725437788401,35.0678,130.3,130.29,0.05319847]
[1725437788605,36.15966303,130.3,130.29,0.05319847]
[1725437789605,3.8393,130.25,130.24,1.3666]
[1725437790313,3.8393,130.25,130.22,1.3148]
[1725437790513,3.89411215,130.25,130.22,1.36870384]
[1725437791215,3.81249903,130.24,130.22,1.36870384]
[1725437792316,0.05481215,130.25,130.22,1.36870384]
[1725437792617,7.67,130.3,130.22,1.3148]
[1725437792913,3.8385,130.28,130.23,27.3997]
[1725437793419,0.04977207,130.27,130.24,0.04989743]
[1725437795216,3.74595094,130.31,130.25,23.56]
[1725437795415,31.23,130.33,130.26,1.3405]
[1725437795821,104.77650844,130.35,130.26,24.9005]
[1725437796024,104.77650844,130.35,130.28,23.56]
[1725437796329,0.05225119,130.33,130.3,23.61349034]
[1725437796623,23.56,130.38,130.31,1.3427]
[1725437797024,23.56,130.37,130.31,1.3427]
[1725437797424,0.04986605,130.35,130.33,0.0539368]
[1725437797723,3.98497534,130.35,130.33,0.0539368]
[1725437798024,0.04986605,130.35,130.33,0.0539368]
[1725437798418,3.83000606,130.34,130.33,0.0539368]
[1725437798926,0.04986605,130.35,130.33,0.0539368]
[1725437799325,3.97659137,130.35,130.33,0.0539368]
[1725437799623,0.04986605,130.35,130.33,0.0539368]
[1725437800026,3.85876274,130.35,130.33,0.0539368]
[1725437800230,0.04986605,130.35,130.33,0.0539368]
[1725437800431,3.8366,130.34,130.33,0.0539368]
[1725437800728,7.73070176,130.34,130.33,0.0539368]
[1725437806729,3.88636605,130.35,130.33,0.0539368]
[1725437806935,0.04986605,130.35,130.33,0.0539368]
[1725437807225,3.8355,130.38,130.33,3.8907368]
[1725437808230,0.05769971,130.37,130.33,3.8907368]
[1725437808819,0.05769971,130.37,130.33,0.0539368]
[1725437810435,23.61769971,130.37,130.33,0.0539368]
[1725437810828,3.8366,130.34,130.33,0.0539368]
[1725437811135,7.67965548,130.34,130.33,0.0539368]
[1725437811427,3.8366,130.34,130.33,0.0539368]
[1725437811825,7.75453224,130.35,130.33,0.0539368]
[1725437812029,3.8365,130.35,130.33,0.0539368]
[1725437812630,7.6961802,130.35,130.33,0.0539368]
[1725437814930,3.8366,130.34,130.33,0.0539368]
[1725437818631,7.6961802,130.35,130.33,0.0539368]
[1725437819637,3.8362,130.36,130.33,0.0539368]
[1725437819945,0.05769971,130.37,130.33,0.0539368]
[1725437820442,0.05769971,130.37,130.34,23.56]
[1725437822144,3.89349971,130.37,130.34,23.56]
[1725437822340,3.89349971,130.37,130.33,0.0539368]
[1725437822738,3.8361,130.36,130.33,0.0539368]
[1725437822938,0.05769971,130.37,130.33,0.0539368]
[1725437823134,3.89369971,130.37,130.33,0.0539368]
[1725437823332,0.05769971,130.37,130.33,0.0539368]
[1725437825642,3.8361,130.36,130.33,0.0539368]
[1725437825944,3.8842085,130.35,130.33,0.0539368]
[1725437826646,7.7206085,130.35,130.33,0.0539368]
[1725437826940,0.05769971,130.37,130.33,0.0539368]
[1725437827146,3.79411348,130.42,130.36,23.56]
[1725437827337,23.56,130.42,130.32,1.3931]
[1725437827542,27.31545199,130.42,130.32,24.9531]
[1725437827844,3.8358,130.38,130.33,3.8369]
[1725437828242,3.8362,130.36,130.34,0.05023295]
[1725437828438,3.8362,130.36,130.34,0.05200231]
[1725437828834,7.69088169,130.35,130.34,0.05200231]
[1725437829043,3.8364,130.35,130.34,0.05200231]
[1725437829646,7.74039654,130.35,130.34,0.05200231]
[1725437836645,3.90399654,130.35,130.34,0.05200231]
[1725437837146,23.56,130.35,130.27,2.7013]
[1725437837347,23.56,130.33,130.27,2.7013]
[1725437837842,23.56,130.33,130.27,6.5399]
[1725437837843,3.8373,130.32,130.27,6.5399]
[1725437838155,0.05574523,130.31,130.28,0.05594113]
[1725437839051,3.89334523,130.31,130.28,0.05594113]
[1725437840340,3.8378,130.3,130.28,0.05594113]
[1725437840849,3.838,130.3,130.28,0.05594113]
[1725437841643,3.8381,130.29,130.28,0.05594113]
[1725437842756,3.838,130.3,130.28,0.05594113]
[1725437847548,3.8381,130.29,130.28,0.05594113]
[1725437849657,0.05574523,130.31,130.28,0.05594113]
[1725437851060,3.89344523,130.31,130.28,0.05594113]
[1725437851655,0.05574523,130.31,130.28,0.05594113]
[1725437852354,3.838,130.3,130.28,0.05594113]
[1725437853756,3.8381,130.29,130.28,0.05594113]
[1725437857767,25.0161,130.31,130.21,26.3833]
[1725437857965,1.3366,130.3,130.21,26.3833]
[1725437858171,3.8392,130.26,130.21,30.2235]
[1725437858556,0.05318183,130.25,130.22,0.05526292]
[1725437858966,3.94929187,130.25,130.22,0.05526292]
[1725437861266,3.8397,130.24,130.22,0.05526292]
[1725437861969,0.05318183,130.25,130.22,0.05526292]
[1725437862171,13.32031801,130.34,130.22,0.05526292]
[1725437862360,27.40986152,130.34,130.26,23.57]
[1725437863261,3.89579505,130.31,130.29,0.05765884]
[1725437864470,0.05799505,130.31,130.29,0.05765884]
[1725437865171,3.89579505,130.31,130.29,0.05765884]
[1725437866564,0.05799505,130.31,130.29,0.05765884]
[1725437866964,3.80268349,130.3,130.29,0.05765884]
[1725437867166,0.05799505,130.31,130.29,0.05765884]
[1725437867771,7.69914637,130.31,130.29,0.05765884]
[1725437870269,3.86144637,130.31,130.29,0.05765884]
[1725437870463,3.8378,130.3,130.29,0.05765884]
[1725437875578,9.43,130.3,130.23,9.43]
[1725437876075,3.8389,130.27,130.23,9.43]
[1725437876274,9.43,130.3,130.22,5.2314]
[1725437876471,0.05184377,130.27,130.25,0.05832103]
[1725437876981,7.67,130.35,130.26,9.43]
[1725437877274,7.67,130.35,130.3,9.43]
[1725437877867,3.81440013,130.36,130.31,9.43]
[1725437878066,2.7281,130.39,130.32,9.48888635]
[1725437878067,0.05467985,130.35,130.32,9.48888635]
[1725437878270,0.04886195,130.35,130.32,9.48888635]
[1725437879678,3.88536195,130.35,130.32,9.48888635]
[1725437880174,3.88536195,130.35,130.32,0.05888635]
[1725437880376,0.04886195,130.35,130.32,0.05888635]
[1725437884087,3.88526195,130.35,130.32,0.05888635]
[1725437888394,3.8368,130.34,130.32,0.05888635]
[1725437888888,3.8369,130.33,130.32,0.05888635]
[1725437889090,0.04886195,130.35,130.32,0.05888635]
[1725437889695,23.63886195,130.35,130.32,0.05888635]
[1725437890085,3.8369,130.33,130.32,0.05888635]
[1725437892589,23.59,130.33,130.21,1.3798]
[1725437892792,23.59,130.29,130.21,4.1728]
[1725437893091,3.8392,130.26,130.21,4.1728]
[1725437893388,23.59,130.28,130.21,4.1728]
[1725437893592,0.0490407,130.26,130.23,0.04990221]
[1725437894789,3.8882407,130.26,130.23,0.04990221]
[1725437895389,0.0490407,130.26,130.23,0.04990221]
[1725437895990,23.6390407,130.26,130.23,0.04990221]
[1725437896695,23.59,130.24,130.14,26.3631]
[1725437896894,23.59,130.24,130.15,1.3511]
[1725437897191,3.8404,130.22,130.17,3.8416]
[1725437897892,3.79838345,130.21,130.18,0.05455273]
[1725437898291,23.59,130.28,130.19,3.8409]
[1725437898498,23.59,130.28,130.19,5.2201]
[1725437898688,3.8398,130.24,130.19,5.2201]
[1725437899197,23.59,130.28,130.19,5.2201]
[1725437899398,3.8399,130.23,130.22,0.05393257]
[1725437899994,3.8398,130.24,130.22,0.05393257]
[1725437900291,0.05371788,130.25,130.22,0.05393257]
[1725437900997,3.8396,130.24,130.22,0.05393257]
[1725437901391,3.89311788,130.25,130.22,0.05393257]
[1725437901586,0.05371788,130.25,130.22,0.05393257]
[1725437901798,3.7980765,130.29,130.24,23.59]
[1725437902098,3.838,130.3,130.25,23.59]
[1725437902397,23.59,130.34,130.25,23.59]
[1725437902591,23.59,130.3,130.21,23.59]
[1725437902797,0.05573152,130.27,130.24,0.05707888]
[1725437904294,3.89443152,130.27,130.24,0.05707888]
[1725437907991,0.05573152,130.27,130.24,0.05707888]
[1725437908503,3.8392,130.26,130.24,0.05707888]
[1725437914105,0.05573152,130.27,130.24,0.05707888]
[1725437914312,0.05573152,130.27,130.25,23.59]
[1725437914613,23.59,130.34,130.25,24.914]
[1725437914909,23.59,130.34,130.26,5.2498]
[1725437914910,27.37012924,130.34,130.26,5.2498]
[1725437915610,0.05375119,130.31,130.29,0.04919784]
[1725437916414,3.83927177,130.3,130.29,0.04919784]
[1725437918015,3.8378,130.3,130.29,0.04919784]
[1725437918319,7.68147398,130.3,130.29,0.04919784]
[1725437918514,3.8378,130.3,130.29,0.04919784]
[1725437919026,7.73638361,130.3,130.29,0.04919784]
[1725437920618,3.89858361,130.3,130.29,0.04919784]
[1725437920916,3.89145119,130.31,130.29,0.04919784]
[1725437921316,7.69327482,130.31,130.29,0.04919784]
[1725437921920,3.8378,130.3,130.29,0.04919784]
[1725437922618,23.59,130.3,130.22,1.3897]
[1725437923020,23.59,130.3,130.23,3.8397]
[1725437923021,3.8388,130.27,130.23,3.8397]
[1725437923423,3.88796633,130.26,130.24,0.05748225]
[1725437925925,3.8393,130.25,130.24,0.05748225]
[1725437928327,0.04876633,130.26,130.24,0.05748225]
[1725437929027,3.88806633,130.26,130.24,0.05748225]
[1725437930330,0.04876633,130.26,130.24,3.89708225]
[1725437930632,0.04876633,130.26,130.24,0.05748225]
[1725437930827,3.8393,130.25,130.24,0.05748225]
[1725437933230,0.04876633,130.26,130.24,0.05748225]
[1725437933831,0.04876633,130.26,130.25,27.4293]
[1725437934137,23.59,130.37,130.29,23.59]
[1725437934330,27.48717179,130.37,130.29,23.59]
[1725437934927,0.0486105,130.34,130.32,0.05012808]
[1725437935932,0.0486105,130.34,130.33,9.44]
[1725437937637,0.0486105,130.34,130.32,0.05012808]
[1725437939836,3.8369,130.33,130.32,0.05012808]
[1725437951145,3.8854105,130.34,130.32,0.05012808]
[1725437953245,3.8369,130.33,130.32,0.05012808]
[1725437956246,23.6386105,130.34,130.26,1.4119]
[1725437956544,23.59,130.34,130.26,1.4119]
[1725437956845,3.8379,130.3,130.26,1.4119]
[1725437957047,3.90890259,130.29,130.26,1.4119]
[1725437957437,3.96649571,130.29,130.26,1.46461569]
[1725437958045,3.96649571,130.29,130.26,14.73361569]
[1725437958446,7.80459571,130.29,130.26,10.89461569]
[1725437959646,7.80459571,130.29,130.26,1.46461569]
[1725437959848,3.8386,130.28,130.26,1.46461569]
[1725437961652,3.96649571,130.29,130.26,1.46461569]
[1725437961653,3.8387,130.27,130.26,0.05271569]
[1725437965257,3.96649571,130.29,130.26,3.89171569]
[1725437965566,3.96649571,130.29,130.26,0.05271569]
[1725437965866,3.8387,130.27,130.26,0.05271569]
[1725437967864,3.8386,130.28,130.26,0.05271569]
[1725437970161,3.89579312,130.29,130.26,13.32141569]
[1725437970365,0.05759312,130.29,130.27,9.43]
[1725437970866,0.05759312,130.29,130.28,3.8384]
[1725437974970,231.542292,131.94,130.34,9.43]
[1725437974971,3.89717179,130.37,130.34,9.43]
[1725437975160,9.43,130.41,130.34,9.43]
[1725437975364,3.8359,130.37,130.34,13.2666]
[1725437975566,7.71473562,130.37,130.34,13.2666]
[1725437975767,3.8359,130.37,130.34,13.2666]
[1725437976075,3.88699439,130.37,130.34,13.31784496]
[1725437976283,7.75470047,130.37,130.34,13.31784496]
[1725437977579,3.91880047,130.37,130.34,13.31784496]
[1725437978173,0.05109439,130.37,130.34,13.31784496]
[1725437978373,0.05109439,130.37,130.35,3.8362]
[1725437979970,3.86439772,130.37,130.35,3.8362]
[1725437980678,0.05109439,130.37,130.35,3.8362]
[1725437980877,3.88689439,130.37,130.34,13.31784496]
[1725437981181,3.78605996,130.36,130.34,0.05124496]
[1725437981475,3.88689439,130.37,130.34,0.05124496]
[1725437982076,7.67266385,130.37,130.34,0.05124496]
[1725437982276,7.67266385,130.37,130.34,3.88784496]
[1725437982666,7.67266385,130.37,130.34,13.31784496]
[1725437984872,3.88689439,130.37,130.34,13.31784496]
[1725437985176,7.70450729,130.37,130.34,13.31784496]
[1725437985573,7.70450729,130.37,130.36,13.2661]
[1725437985574,0.05109439,130.37,130.36,13.2661]
[1725437985777,4.0999,130.49,130.36,9.43]
[1725437985975,9.43,130.44,130.38,9.43]
[1725437986278,9.43,130.43,130.37,13.2656]
[1725437986674,3.8348,130.41,130.39,0.05822418]
[1725437988881,3.8349,130.4,130.39,0.05822418]
[1725437989081,13.2687174,130.44,130.39,0.05822418]
[1725437989282,3.8387174,130.44,130.39,0.05822418]
[1725437989476,9.43,130.44,130.39,0.05822418]
[1725437989680,3.8347,130.41,130.39,0.05822418]
[1725437990077,3.85453782,130.44,130.4,3.8346]
[1725437990282,4.0999,130.49,130.42,9.43]
[1725437990480,9.43,130.48,130.44,0.04954396]
[1725437990679,3.8333,130.46,130.44,0.04954396]
[1725437991382,3.8331,130.47,130.44,0.04954396]
[1725437992081,3.8327,130.48,130.44,0.04954396]
[1725437993086,3.8327,130.48,130.44,3.88324396]
[1725437994085,3.8327,130.48,130.44,0.04954396]
[1725437995389,3.8329,130.47,130.44,0.04954396]
[1725437996188,3.8331,130.46,130.44,0.04954396]
[1725437996687,3.84686404,130.49,130.44,0.04954396]
[1725437996892,3.8328,130.48,130.44,0.04954396]
[1725437997089,3.8328,130.48,130.45,0.05124163]
[1725437997285,3.74729838,130.49,130.45,0.05124163]
[1725437997487,9.43,130.5,130.45,0.05124163]
[1725437997991,3.833,130.47,130.45,0.05124163]
[1725437999192,13.19417292,130.5,130.45,0.05124163]
[1725437999391,9.43,130.49,130.45,0.05124163]
[1725437999689,9.43,130.47,130.45,0.05124163]
[1725438000096,3.8331,130.46,130.45,0.05124163]
[1725438001902,3.78987281,130.48,130.45,9.48124163]
[1725438002197,3.8321,130.5,130.45,13.31464163]
[1725438002385,3.8473939,130.51,130.48,9.43]
[1725438002585,10.765,130.54,130.48,9.48399702]
[1725438002790,3.8316,130.52,130.48,9.48399702]
[1725438002988,7.61917197,130.52,130.48,9.48399702]
[1725438003303,3.8317,130.51,130.48,9.48399702]
[1725438003999,3.8317,130.51,130.48,0.05399702]
[1725438005487,135.74204646,130.55,130.48,0.05399702]
[1725438005690,139.51273298,130.55,130.48,0.05399702]
[1725438005894,23.57,130.53,130.48,0.05399702]
[1725438006091,3.8322,130.49,130.48,0.05399702]
[1725438009191,25.0197,130.52,130.41,3.89107244]
[1725438009408,23.57,130.5,130.4,27.7663]
[1725438009696,23.57,130.5,130.42,3.8341]
[1725438009906,3.8329,130.47,130.42,3.8341]
[1725438010095,3.90286667,130.46,130.42,3.8341]
[1725438010297,3.88478692,130.45,130.43,0.05625647]
[1725438010498,7.75884809,130.45,130.43,0.05625647]
[1725438011198,3.92544809,130.45,130.43,0.05625647]
[1725438012403,7.75894809,130.45,130.43,0.05625647]
[1725438013298,3.8337,130.44,130.43,0.05625647]
[1725438013602,0.0501852,130.45,130.43,0.05625647]
[1725438013810,3.8836852,130.45,130.43,0.05625647]
[1725438014309,7.68496681,130.45,130.43,0.05625647]
[1725438016594,3.8337,130.44,130.43,0.05625647]
[1725438019508,3.8346,130.41,130.37,23.57]
[1725438019906,3.80128161,130.45,130.37,23.57]
[1725438020200,26.2943,130.46,130.37,27.4056]
[1725438020404,26.2943,130.46,130.37,23.57]
[1725438020697,3.8345,130.42,130.4,0.04925019]
[1725438023701,3.8346,130.41,130.4,0.04925019]
[1725438024099,23.62219293,130.43,130.33,28.8235]
[1725438024100,3.8356,130.38,130.33,28.8235]
[1725438024506,3.8356,130.38,130.34,5.2732]
[1725438024707,7.65770662,130.38,130.34,5.2732]
[1725438025002,0.05441499,130.37,130.35,0.05408491]
[1725438025795,3.89021499,130.37,130.35,0.05408491]
[1725438029512,3.8361,130.36,130.35,0.05408491]
[1725438030217,9.44,130.36,130.28,12.1689]
[1725438030803,9.44,130.34,130.28,12.1689]
[1725438031004,9.44,130.34,130.27,9.44]
[1725438031208,0.05359179,130.32,130.29,0.05309761]
[1725438031610,3.8377,130.31,130.29,0.05309761]
[1725438031812,3.8377,130.31,130.3,9.44]
[1725438032023,3.89109179,130.32,130.3,9.44]
[1725438032225,0.05359179,130.32,130.31,9.44]
[1725438032621,0.05359179,130.32,130.29,0.05309761]
[1725438032825,0.05359179,130.32,130.29,9.49309761]
[1725438033820,3.89089179,130.32,130.29,9.49309761]
[1725438034020,3.89089179,130.32,130.29,0.05309761]
[1725438034226,3.92877235,130.31,130.29,0.05309761]
[1725438035529,3.89089179,130.32,130.29,0.05309761]
[1725438036635,3.8376,130.31,130.29,0.05309761]
[1725438036838,0.05359179,130.32,130.29,0.05309761]
[1725438037128,3.8378,130.3,130.29,0.05309761]
[1725438037430,7.70161333,130.3,130.29,0.05309761]
[1725438037627,3.8378,130.3,130.29,0.05309761]
[1725438038126,3.8388,130.27,130.23,3.8399]
[1725438039129,0.05241423,130.26,130.24,0.05244589]
[1725438040318,0.05241423,130.26,130.24,3.89184589]
[1725438040926,0.05241423,130.26,130.24,0.05244589]
[1725438043429,3.89161423,130.26,130.24,0.05244589]
[1725438043929,3.8393,130.25,130.24,0.05244589]
[1725438055340,3.89151423,130.26,130.24,0.05244589]
[1725438056637,0.05241423,130.26,130.24,0.05244589]
[1725438057845,3.89151423,130.26,130.24,0.05244589]
[1725438058536,0.05241423,130.26,130.24,0.05244589]
[1725438059146,0.05241423,130.26,130.24,3.89204589]
[1725438059343,0.05241423,130.26,130.24,27.49204589]
[1725438060648,0.05241423,130.26,130.25,3.8393]
[1725438061143,0.05241423,130.26,130.24,23.65244589]
[1725438061144,0.05241423,130.26,130.24,27.49184589]
[1725438061836,0.05241423,130.26,130.24,0.05244589]
[1725438062547,0.05241423,130.26,130.24,3.89194589]
[1725438063044,0.05241423,130.26,130.24,0.05244589]
[1725438063542,3.89141423,130.26,130.24,0.05244589]
[1725438063743,23.6,130.37,130.25,23.6]
[1725438063937,23.6,130.37,130.2,25.0495]
[1725438063938,3.8374,130.32,130.28,23.6]
[1725438064136,7.90750662,130.38,130.28,27.4382]
[1725438064341,31.50750662,130.38,130.28,27.4382]